[Event "Live Chess"]
[Site "Chess.com"]
[Date "2024.06.01"]
[Round "-"]
[White "Ferrarifan27"]
[Black "sugandhasinha"]
[Result "0-1"]
[WhiteElo "2059"]
[BlackElo "1147"]
[TimeControl "300"]
[EndTime "11:06:09 PDT"]
[Termination "sugandhasinha won by checkmate"]

1. e4 {[%clk 0:04:39.3]} 1... c5 {[%clk 0:04:52]} 2. Nf3 {[%clk 0:04:37.7]} 2...
g6 {[%clk 0:04:49.4]} 3. d4 {[%clk 0:04:36.1]} 3... cxd4 {[%clk 0:04:48.8]} 4.
Nxd4 {[%clk 0:04:35.8]} 4... Bg7 {[%clk 0:04:47.6]} 5. Nc3 {[%clk 0:04:34.6]}
5... d6 {[%clk 0:04:46.9]} 6. Be3 {[%clk 0:04:32.2]} 6... Nf6 {[%clk 0:04:46.2]}
7. f3 {[%clk 0:04:30.6]} 7... Nc6 {[%clk 0:04:45.7]} 8. Qd2 {[%clk 0:04:29.3]}
8... O-O {[%clk 0:04:44.4]} 9. O-O-O {[%clk 0:04:28.4]} 9... a6 {[%clk
0:04:40.9]} 10. h4 {[%clk 0:04:26.1]} 10... Bd7 {[%clk 0:04:39.1]} 11. g4 {[%clk
0:04:24.7]} 11... b5 {[%clk 0:04:38.1]} 12. a3 {[%clk 0:04:22.8]} 12... b4
{[%clk 0:04:36.6]} 13. axb4 {[%clk 0:04:20.7]} 13... Nxb4 {[%clk 0:04:33.1]} 14.
h5 {[%clk 0:04:16.7]} 14... Rc8 {[%clk 0:04:30.7]} 15. hxg6 {[%clk 0:04:11.2]}
15... fxg6 {[%clk 0:04:27.4]} 16. Qh2 {[%clk 0:04:08.3]} 16... Rxc3 {[%clk
0:04:20.4]} 17. bxc3 {[%clk 0:04:06.9]} 17... Na2+ {[%clk 0:04:19.8]} 18. Kd2
{[%clk 0:04:06]} 18... Qa5 {[%clk 0:04:16.7]} 19. Bc4+ {[%clk 0:04:04.8]} 19...
Kh8 {[%clk 0:04:08.1]} 20. Bxa2 {[%clk 0:04:02.1]} 20... Qxa2 {[%clk 0:04:06.3]}
21. Ra1 {[%clk 0:03:54.1]} 21... Qc4 {[%clk 0:04:04.1]} 22. Bg5 {[%clk 0:03:44]}
22... Qg8 {[%clk 0:03:56.8]} 23. Rxa6 {[%clk 0:03:38.4]} 23... Bxg4 {[%clk
0:03:29.4]} 24. Bxf6 {[%clk 0:03:31]} 24... Bxf6 {[%clk 0:03:28.6]} 25. fxg4
{[%clk 0:03:29.5]} 25... Bg5+ {[%clk 0:03:26]} 26. Kd3 {[%clk 0:03:26.6]} 26...
Rc8 {[%clk 0:03:10.6]} 27. Ne6 {[%clk 0:03:11.1]} 27... h6 {[%clk 0:03:04.9]}
28. Nd4 {[%clk 0:02:37.7]} 28... Qc4# {[%clk 0:02:53.5]} 0-1

[Event "Live Chess"]
[Site "Chess.com"]
[Date "2024.06.01"]
[Round "-"]
[White "GoldsmanB"]
[Black "resipsa6"]
[Result "1/2-1/2"]
[WhiteElo "1052"]
[BlackElo "2028"]
[TimeControl "300"]
[EndTime "11:06:24 PDT"]
[Termination "Game drawn by repetition"]

1. d4 {[%clk 0:04:58.9]} 1... e6 {[%clk 0:04:58.1]} 2. Bf4 {[%clk 0:04:56.5]}
2... Nf6 {[%clk 0:04:57]} 3. e3 {[%clk 0:04:55.3]} 3... d5 {[%clk 0:04:55.5]} 4.
Nf3 {[%clk 0:04:53.1]} 4... Bd6 {[%clk 0:04:54]} 5. Bg3 {[%clk 0:04:50.8]} 5...
Bxg3 {[%clk 0:04:51.8]} 6. hxg3 {[%clk 0:04:50.7]} 6... c6 {[%clk 0:04:50.2]} 7.
c3 {[%clk 0:04:48.5]} 7... Nbd7 {[%clk 0:04:48.5]} 8. Nbd2 {[%clk 0:04:47.1]}
8... Nb6 {[%clk 0:04:47.3]} 9. Bd3 {[%clk 0:04:45.3]} 9... Bd7 {[%clk
0:04:46.4]} 10. Qb3 {[%clk 0:04:43.8]} 10... h6 {[%clk 0:04:44.8]} 11. O-O-O
{[%clk 0:04:42.5]} 11... a5 {[%clk 0:04:39.8]} 12. c4 {[%clk 0:04:40.7]} 12...
dxc4 {[%clk 0:04:38.3]} 13. Nxc4 {[%clk 0:04:40.5]} 13... Nxc4 {[%clk
0:04:37.7]} 14. Bxc4 {[%clk 0:04:39.9]} 14... a4 {[%clk 0:04:37.1]} 15. Qc2
{[%clk 0:04:36.4]} 15... b5 {[%clk 0:04:34.4]} 16. Be2 {[%clk 0:04:32.6]} 16...
a3 {[%clk 0:04:27.7]} 17. b3 {[%clk 0:04:31.3]} 17... Nd5 {[%clk 0:04:24.1]} 18.
e4 {[%clk 0:04:27.7]} 18... Nb4 {[%clk 0:04:21.9]} 19. Qc5 {[%clk 0:04:23.3]}
19... Nxa2+ {[%clk 0:04:20.3]} 20. Kb1 {[%clk 0:04:21.3]} 20... Qe7 {[%clk
0:03:30.4]} 21. Qxe7+ {[%clk 0:04:15.9]} 21... Kxe7 {[%clk 0:03:30.3]} 22. Kxa2
{[%clk 0:04:14.9]} 22... b4 {[%clk 0:03:27.6]} 23. Ne5 {[%clk 0:04:11]} 23...
Rhb8 {[%clk 0:03:22.4]} 24. Nxd7 {[%clk 0:04:08.9]} 24... Kxd7 {[%clk
0:03:22.3]} 25. Rc1 {[%clk 0:04:05.7]} 25... Rc8 {[%clk 0:03:20.6]} 26. Rh4
{[%clk 0:04:02.1]} 26... Ra5 {[%clk 0:03:19.4]} 27. Rf4 {[%clk 0:03:57.5]} 27...
f6 {[%clk 0:03:17]} 28. f3 {[%clk 0:03:52.7]} 28... c5 {[%clk 0:03:15.5]} 29.
dxc5 {[%clk 0:03:50.8]} 29... Raxc5 {[%clk 0:03:15.4]} 30. Rxc5 {[%clk
0:03:49.2]} 30... Rxc5 {[%clk 0:03:15.3]} 31. Bc4 {[%clk 0:03:45.2]} 31... Ke7
{[%clk 0:03:07.3]} 32. Rh4 {[%clk 0:03:40.5]} 32... f5 {[%clk 0:03:04.4]} 33.
exf5 {[%clk 0:03:38.9]} 33... Rxf5 {[%clk 0:03:03.6]} 34. Rf4 {[%clk 0:03:35.4]}
34... Re5 {[%clk 0:03:02.3]} 35. Re4 {[%clk 0:03:32.7]} 35... Rh5 {[%clk
0:03:00.8]} 36. Rh4 {[%clk 0:03:31.2]} 36... Re5 {[%clk 0:02:59.7]} 37. Re4
{[%clk 0:03:30.2]} 37... Rh5 {[%clk 0:02:59.1]} 38. Rh4 {[%clk 0:03:29.3]} 38...
Re5 {[%clk 0:02:58.6]} 39. Re4 {[%clk 0:03:28.5]} 1/2-1/2

[Event "Live Chess"]
[Site "Chess.com"]
[Date "2024.06.01"]
[Round "-"]
[White "Sacbutt"]
[Black "Stanbad1"]
[Result "0-1"]
[WhiteElo "2359"]
[BlackElo "2680"]
[TimeControl "300"]
[EndTime "11:06:26 PDT"]
[Termination "Stanbad1 won on time"]

1. d4 {[%clk 0:04:57]} 1... Nf6 {[%clk 0:04:58.1]} 2. c4 {[%clk 0:04:56.1]} 2...
c5 {[%clk 0:04:56]} 3. d5 {[%clk 0:04:54.9]} 3... b5 {[%clk 0:04:54.9]} 4. cxb5
{[%clk 0:04:54.8]} 4... a6 {[%clk 0:04:53.6]} 5. bxa6 {[%clk 0:04:53.9]} 5... g6
{[%clk 0:04:52.8]} 6. Nc3 {[%clk 0:04:53.8]} 6... Bg7 {[%clk 0:04:51.7]} 7. Nf3
{[%clk 0:04:53.4]} 7... O-O {[%clk 0:04:51.3]} 8. g3 {[%clk 0:04:52.2]} 8...
Nxa6 {[%clk 0:04:47.8]} 9. Bg2 {[%clk 0:04:43.8]} 9... d6 {[%clk 0:04:46.7]} 10.
O-O {[%clk 0:04:42.9]} 10... Bf5 {[%clk 0:04:45.4]} 11. Nh4 {[%clk 0:04:20.2]}
11... Bd7 {[%clk 0:04:42.2]} 12. Bg5 {[%clk 0:04:03.8]} 12... Qb6 {[%clk
0:04:40.1]} 13. Qd2 {[%clk 0:03:58.8]} 13... Rfb8 {[%clk 0:04:36.8]} 14. b3
{[%clk 0:03:52.4]} 14... Qb4 {[%clk 0:04:29.5]} 15. Rfc1 {[%clk 0:03:47.9]}
15... c4 {[%clk 0:04:22.2]} 16. bxc4 {[%clk 0:03:42.3]} 16... Qxc4 {[%clk
0:04:21.1]} 17. Bxf6 {[%clk 0:03:31.3]} 17... Bxf6 {[%clk 0:03:51.3]} 18. Ne4
{[%clk 0:03:29]} 18... Qd4 {[%clk 0:03:50.9]} 19. Nxf6+ {[%clk 0:03:24.9]} 19...
Qxf6 {[%clk 0:03:50.8]} 20. Rab1 {[%clk 0:03:04.3]} 20... Nc5 {[%clk 0:03:47.9]}
21. Nf3 {[%clk 0:02:33.2]} 21... Bf5 {[%clk 0:03:33.2]} 22. Rxb8+ {[%clk
0:02:30.9]} 22... Rxb8 {[%clk 0:03:33.1]} 23. Nd4 {[%clk 0:02:28.2]} 23... Be4
{[%clk 0:03:29.5]} 24. Bxe4 {[%clk 0:02:22.6]} 24... Nxe4 {[%clk 0:03:25.3]} 25.
Qe3 {[%clk 0:02:21.5]} 25... Nc5 {[%clk 0:03:23.4]} 26. Nc6 {[%clk 0:02:18.9]}
26... Rb7 {[%clk 0:03:22]} 27. Kg2 {[%clk 0:01:59.5]} 27... Kg7 {[%clk 0:03:15]}
28. Rc2 {[%clk 0:01:52]} 28... Qf5 {[%clk 0:03:09.9]} 29. Rd2 {[%clk 0:01:45]}
29... Ne4 {[%clk 0:03:04.2]} 30. Rd4 {[%clk 0:01:38.3]} 30... Nf6 {[%clk
0:03:02.5]} 31. Nxe7 {[%clk 0:01:34.8]} 31... Qh5 {[%clk 0:02:57.9]} 32. Rh4
{[%clk 0:01:28.1]} 32... Rxe7 {[%clk 0:02:24.6]} 33. Qxe7 {[%clk 0:01:22.8]}
33... Qxd5+ {[%clk 0:02:24.2]} 34. e4 {[%clk 0:01:19.8]} 34... Qxa2 {[%clk
0:02:23]} 35. Qxd6 {[%clk 0:01:18.1]} 35... Qe2 {[%clk 0:02:16.9]} 36. Qe5
{[%clk 0:01:15.9]} 36... Qa6 {[%clk 0:01:58.9]} 37. Rf4 {[%clk 0:01:14.6]} 37...
h6 {[%clk 0:01:52.4]} 38. h4 {[%clk 0:01:13.4]} 38... Qc6 {[%clk 0:01:49.8]} 39.
Kh2 {[%clk 0:01:09.2]} 39... Qb6 {[%clk 0:01:42.7]} 40. g4 {[%clk 0:01:05.6]}
40... Qe6 {[%clk 0:01:39.5]} 41. Qd4 {[%clk 0:00:59.1]} 41... g5 {[%clk
0:01:24.5]} 42. hxg5 {[%clk 0:00:56.3]} 42... hxg5 {[%clk 0:01:24.4]} 43. Rf5
{[%clk 0:00:55.7]} 43... Kg6 {[%clk 0:01:23.6]} 44. f3 {[%clk 0:00:43.3]} 44...
Qc6 {[%clk 0:01:14]} 45. Qd2 {[%clk 0:00:40.5]} 45... Nh7 {[%clk 0:01:09.7]} 46.
Rd5 {[%clk 0:00:38.8]} 46... Qc7+ {[%clk 0:01:04.4]} 47. Kg2 {[%clk 0:00:38.3]}
47... Qe7 {[%clk 0:01:01.1]} 48. Rd6+ {[%clk 0:00:36.5]} 48... f6 {[%clk
0:01:00.1]} 49. Qd4 {[%clk 0:00:35.2]} 49... Kg7 {[%clk 0:00:54.2]} 50. Qd5
{[%clk 0:00:34.1]} 50... Nf8 {[%clk 0:00:51.9]} 51. Rc6 {[%clk 0:00:27.2]} 51...
Qa7 {[%clk 0:00:47.7]} 52. Qc4 {[%clk 0:00:25.7]} 52... Qe3 {[%clk 0:00:35.9]}
53. Rc7+ {[%clk 0:00:24]} 53... Kh6 {[%clk 0:00:31.8]} 54. Rc8 {[%clk 0:00:15]}
54... Qd2+ {[%clk 0:00:29.7]} 55. Kh3 {[%clk 0:00:13.2]} 55... Ng6 {[%clk
0:00:24.6]} 56. Qc3 {[%clk 0:00:10.6]} 56... Nf4+ {[%clk 0:00:22.5]} 0-1

[Event "Live Chess"]
[Site "Chess.com"]
[Date "2024.06.01"]
[Round "-"]
[White "NeilDruggan73"]
[Black "Grace6363"]
[Result "0-1"]
[WhiteElo "1714"]
[BlackElo "1167"]
[TimeControl "300"]
[EndTime "11:06:49 PDT"]
[Termination "Grace6363 won on time"]

1. d4 {[%clk 0:04:57.4]} 1... Nf6 {[%clk 0:04:58.2]} 2. Bg5 {[%clk 0:04:54.8]}
2... e6 {[%clk 0:04:56.5]} 3. e4 {[%clk 0:04:51.9]} 3... d6 {[%clk 0:04:55.5]}
4. Nf3 {[%clk 0:04:39.3]} 4... Nbd7 {[%clk 0:04:54.2]} 5. e5 {[%clk 0:04:32]}
5... dxe5 {[%clk 0:04:51.5]} 6. dxe5 {[%clk 0:04:29.4]} 6... h6 {[%clk
0:04:42.9]} 7. Be3 {[%clk 0:03:52.2]} 7... Ng4 {[%clk 0:04:35.4]} 8. Bf4 {[%clk
0:03:38]} 8... g5 {[%clk 0:04:29.9]} 9. Bg3 {[%clk 0:03:27.4]} 9... Bg7 {[%clk
0:04:29.1]} 10. h3 {[%clk 0:03:21.4]} 10... Ngxe5 {[%clk 0:04:27.7]} 11. Nxe5
{[%clk 0:03:10.8]} 11... Bxe5 {[%clk 0:04:26.7]} 12. Nc3 {[%clk 0:02:58.1]}
12... Bxg3 {[%clk 0:04:23.4]} 13. fxg3 {[%clk 0:02:53.5]} 13... Qf6 {[%clk
0:04:15.7]} 14. Bb5 {[%clk 0:02:30.2]} 14... c6 {[%clk 0:04:12.5]} 15. Bd3
{[%clk 0:02:23.4]} 15... Nc5 {[%clk 0:04:06.3]} 16. Qe2 {[%clk 0:02:11.4]} 16...
Nxd3+ {[%clk 0:04:03.4]} 17. Qxd3 {[%clk 0:02:05.1]} 17... Qe5+ {[%clk
0:04:01.6]} 18. Ne4 {[%clk 0:02:01.3]} 18... b5 {[%clk 0:03:50.2]} 19. O-O-O
{[%clk 0:01:32.2]} 19... Bb7 {[%clk 0:03:46]} 20. Nd6+ {[%clk 0:01:29.2]} 20...
Kf8 {[%clk 0:03:41.7]} 21. Nxb7 {[%clk 0:01:27.9]} 21... Kg7 {[%clk 0:03:35.2]}
22. Rhe1 {[%clk 0:01:17.4]} 22... Qc7 {[%clk 0:03:26.5]} 23. Qc3+ {[%clk
0:01:09.8]} 23... f6 {[%clk 0:03:22.2]} 24. Nc5 {[%clk 0:01:03]} 24... b4 {[%clk
0:03:12]} 25. Qc4 {[%clk 0:00:49.6]} 25... Qxg3 {[%clk 0:03:02]} 26. Rxe6 {[%clk
0:00:36]} 26... Rae8 {[%clk 0:02:44]} 27. Rd7+ {[%clk 0:00:31.9]} 27... Kg6
{[%clk 0:02:36.8]} 28. Qd3+ {[%clk 0:00:13.8]} 28... Qxd3 {[%clk 0:02:34.7]} 29.
cxd3 {[%clk 0:00:10]} 29... Rxe6 {[%clk 0:02:31.9]} 30. Nxe6 {[%clk 0:00:08.8]}
30... Re8 {[%clk 0:02:27.4]} 31. Nc5 {[%clk 0:00:08.4]} 31... Re1+ {[%clk
0:02:24.3]} 32. Kd2 {[%clk 0:00:08]} 32... Rg1 {[%clk 0:02:22.4]} 33. Rd6 {[%clk
0:00:07]} 33... Rxg2+ {[%clk 0:02:20.6]} 34. Ke3 {[%clk 0:00:06.7]} 34... Rxb2
{[%clk 0:02:19.4]} 35. Rxc6 {[%clk 0:00:05.6]} 35... Rxa2 {[%clk 0:02:18.1]} 36.
Ne4 {[%clk 0:00:04.7]} 36... Rh2 {[%clk 0:02:16.7]} 37. Rxf6+ {[%clk 0:00:04.2]}
37... Kh5 {[%clk 0:02:12.8]} 38. Ng3+ {[%clk 0:00:03.1]} 38... Kh4 {[%clk
0:02:09]} 39. Ne4 {[%clk 0:00:02.8]} 39... Rxh3+ {[%clk 0:02:07.1]} 0-1

[Event "Live Chess"]
[Site "Chess.com"]
[Date "2024.06.01"]
[Round "-"]
[White "RamsayFlayer"]
[Black "hapehansen"]
[Result "0-1"]
[WhiteElo "1958"]
[BlackElo "2242"]
[TimeControl "300"]
[EndTime "11:06:52 PDT"]
[Termination "hapehansen won by resignation"]

1. e4 {[%clk 0:04:57.5]} 1... d5 {[%clk 0:04:57.5]} 2. exd5 {[%clk 0:04:56.2]}
2... Qxd5 {[%clk 0:04:55.8]} 3. Nc3 {[%clk 0:04:55.8]} 3... Qa5 {[%clk 0:04:55]}
4. d4 {[%clk 0:04:55.3]} 4... Nf6 {[%clk 0:04:53.8]} 5. Nf3 {[%clk 0:04:54.9]}
5... Bf5 {[%clk 0:04:50.9]} 6. Bd3 {[%clk 0:04:52.9]} 6... e6 {[%clk 0:04:42.6]}
7. Bxf5 {[%clk 0:04:50.8]} 7... Qxf5 {[%clk 0:04:40.4]} 8. O-O {[%clk
0:04:49.5]} 8... c6 {[%clk 0:04:32.3]} 9. Re1 {[%clk 0:04:47.9]} 9... Nbd7
{[%clk 0:04:29.3]} 10. Qe2 {[%clk 0:04:21.9]} 10... Be7 {[%clk 0:04:24]} 11. Ne4
{[%clk 0:04:20.2]} 11... Nxe4 {[%clk 0:04:20.2]} 12. Qxe4 {[%clk 0:04:20.1]}
12... Qxe4 {[%clk 0:04:19.3]} 13. Rxe4 {[%clk 0:04:19.7]} 13... O-O {[%clk
0:04:02.4]} 14. Bg5 {[%clk 0:04:11.5]} 14... Bxg5 {[%clk 0:03:57.4]} 15. Nxg5
{[%clk 0:04:11.4]} 15... Nf6 {[%clk 0:03:54]} 16. Re2 {[%clk 0:04:06.1]} 16...
Rfd8 {[%clk 0:03:53]} 17. c3 {[%clk 0:04:03.9]} 17... Rac8 {[%clk 0:03:49.5]}
18. Ne4 {[%clk 0:04:01.6]} 18... Nd5 {[%clk 0:03:44.7]} 19. Nc5 {[%clk
0:03:53.4]} 19... b6 {[%clk 0:03:40]} 20. Na6 {[%clk 0:03:44.1]} 20... Kf8
{[%clk 0:03:27.3]} 21. a3 {[%clk 0:03:41.6]} 21... Nc7 {[%clk 0:03:18.4]} 22.
Nb4 {[%clk 0:03:37.3]} 22... Nb5 {[%clk 0:03:13]} 23. a4 {[%clk 0:03:31]} 23...
Nd6 {[%clk 0:03:07.9]} 24. a5 {[%clk 0:03:27.2]} 24... c5 {[%clk 0:03:02.4]} 25.
dxc5 {[%clk 0:03:21.1]} 25... bxc5 {[%clk 0:02:59.5]} 26. Nc2 {[%clk 0:03:05.1]}
26... Rb8 {[%clk 0:02:51.1]} 27. Ne3 {[%clk 0:02:57.9]} 27... Ke7 {[%clk
0:02:34.3]} 28. Ra4 {[%clk 0:02:53.6]} 28... Rb3 {[%clk 0:02:26.4]} 29. Nc4
{[%clk 0:02:47.6]} 29... Nxc4 {[%clk 0:02:23.1]} 30. Rxc4 {[%clk 0:02:46.1]}
30... Rd1+ {[%clk 0:02:20.5]} 0-1

[Event "Live Chess"]
[Site "Chess.com"]
[Date "2024.06.01"]
[Round "-"]
[White "powerchs"]
[Black "MellowAesthetic"]
[Result "0-1"]
[WhiteElo "1254"]
[BlackElo "2065"]
[TimeControl "300"]
[EndTime "11:07:00 PDT"]
[Termination "MellowAesthetic won by resignation"]

1. e4 {[%clk 0:04:55.6]} 1... c5 {[%clk 0:04:58.7]} 2. Nf3 {[%clk 0:04:54.1]}
2... d6 {[%clk 0:04:58.1]} 3. d4 {[%clk 0:04:50.9]} 3... cxd4 {[%clk 0:04:57.7]}
4. Nxd4 {[%clk 0:04:46.6]} 4... Nf6 {[%clk 0:04:57.1]} 5. Nc3 {[%clk 0:04:43.2]}
5... g6 {[%clk 0:04:56.4]} 6. f3 {[%clk 0:04:42.2]} 6... Bg7 {[%clk 0:04:55.1]}
7. Be3 {[%clk 0:04:41.1]} 7... O-O {[%clk 0:04:54.3]} 8. Qd2 {[%clk 0:04:38.4]}
8... Nc6 {[%clk 0:04:53.5]} 9. O-O-O {[%clk 0:04:35.3]} 9... d5 {[%clk
0:04:49.9]} 10. g4 {[%clk 0:04:30.2]} 10... dxe4 {[%clk 0:04:34.4]} 11. g5
{[%clk 0:04:23.7]} 11... Nd5 {[%clk 0:04:21.5]} 12. fxe4 {[%clk 0:04:18.5]}
12... Nxe3 {[%clk 0:04:11.5]} 13. Qxe3 {[%clk 0:04:13.2]} 13... Bxd4 {[%clk
0:04:04.9]} 14. Qf3 {[%clk 0:04:05.2]} 14... Qa5 {[%clk 0:03:52.6]} 15. Kb1
{[%clk 0:04:01.2]} 15... Bxc3 {[%clk 0:03:42.7]} 0-1

[Event "Live Chess"]
[Site "Chess.com"]
[Date "2024.06.01"]
[Round "-"]
[White "JohanKjeldahl"]
[Black "LanceMaster23"]
[Result "0-1"]
[WhiteElo "1821"]
[BlackElo "1795"]
[TimeControl "300"]
[EndTime "11:07:06 PDT"]
[Termination "LanceMaster23 won by checkmate"]

1. e4 {[%clk 0:04:57.6]} 1... c6 {[%clk 0:04:58.6]} 2. d4 {[%clk 0:04:55.9]}
2... d5 {[%clk 0:04:57.7]} 3. Nc3 {[%clk 0:04:54.7]} 3... dxe4 {[%clk
0:04:56.3]} 4. Nxe4 {[%clk 0:04:53.7]} 4... Nf6 {[%clk 0:04:55.9]} 5. Ng3 {[%clk
0:04:50.6]} 5... Bg4 {[%clk 0:04:46.4]} 6. Nf3 {[%clk 0:04:48.1]} 6... e6 {[%clk
0:04:40.1]} 7. Be2 {[%clk 0:04:46.7]} 7... Be7 {[%clk 0:04:37.7]} 8. c3 {[%clk
0:04:45.4]} 8... Nbd7 {[%clk 0:04:35.9]} 9. Qb3 {[%clk 0:04:42]} 9... Qb6 {[%clk
0:04:34.4]} 10. Bf4 {[%clk 0:04:38.9]} 10... O-O {[%clk 0:04:29.8]} 11. O-O
{[%clk 0:04:37.7]} 11... h6 {[%clk 0:04:23.9]} 12. h3 {[%clk 0:04:36.5]} 12...
Bxf3 {[%clk 0:04:21.7]} 13. Bxf3 {[%clk 0:04:35.5]} 13... Nd5 {[%clk 0:04:20.3]}
14. Bd2 {[%clk 0:04:32]} 14... a5 {[%clk 0:04:15.6]} 15. Ne4 {[%clk 0:04:27.3]}
15... N5f6 {[%clk 0:03:04.3]} 16. Rfe1 {[%clk 0:04:12.3]} 16... Nxe4 {[%clk
0:02:57]} 17. Bxe4 {[%clk 0:04:10.6]} 17... Qc7 {[%clk 0:02:49.2]} 18. Qc2
{[%clk 0:04:02.5]} 18... Nf6 {[%clk 0:02:43.7]} 19. Bf3 {[%clk 0:03:59.3]} 19...
c5 {[%clk 0:02:40.6]} 20. dxc5 {[%clk 0:03:53.3]} 20... Bxc5 {[%clk 0:02:39.7]}
21. Be3 {[%clk 0:03:50.4]} 21... Rad8 {[%clk 0:02:19]} 22. a4 {[%clk 0:03:42.2]}
22... Bxe3 {[%clk 0:02:16.6]} 23. Rxe3 {[%clk 0:03:41.1]} 23... b6 {[%clk
0:02:00]} 24. Rae1 {[%clk 0:03:36]} 24... Rd6 {[%clk 0:01:49.2]} 25. Re5 {[%clk
0:03:34.2]} 25... Rfd8 {[%clk 0:01:46.4]} 26. Rb5 {[%clk 0:03:32.2]} 26... Nd5
{[%clk 0:01:34.4]} 27. Qe4 {[%clk 0:03:19.4]} 27... Ne7 {[%clk 0:01:19.9]} 28.
g4 {[%clk 0:03:07.4]} 28... Rd2 {[%clk 0:01:13.1]} 29. Kg2 {[%clk 0:03:02.3]}
29... R8d5 {[%clk 0:01:10.8]} 30. Re2 {[%clk 0:02:46.1]} 30... Rxb5 {[%clk
0:01:06.9]} 31. axb5 {[%clk 0:02:43.7]} 31... Rxe2 {[%clk 0:01:03.6]} 32. Qxe2
{[%clk 0:02:41.1]} 32... Nd5 {[%clk 0:01:02.9]} 33. Bxd5 {[%clk 0:02:38.1]}
33... exd5 {[%clk 0:01:02.8]} 34. Qe8+ {[%clk 0:02:36.6]} 34... Kh7 {[%clk
0:01:01.6]} 35. Qc6 {[%clk 0:02:33.6]} 35... Qe5 {[%clk 0:00:58]} 36. Qxb6
{[%clk 0:02:27.6]} 36... Qe4+ {[%clk 0:00:57.4]} 37. Kf1 {[%clk 0:02:11.3]}
37... Qd3+ {[%clk 0:00:56.2]} 38. Kg2 {[%clk 0:02:05]} 38... Qe4+ {[%clk
0:00:54.9]} 39. Kg3 {[%clk 0:01:58.8]} 39... Qd3+ {[%clk 0:00:50]} 40. Qe3
{[%clk 0:01:56]} 40... Qxb5 {[%clk 0:00:48.3]} 41. Qd2 {[%clk 0:01:45.5]} 41...
Qb8+ {[%clk 0:00:45.3]} 42. f4 {[%clk 0:01:42.6]} 42... Qb5 {[%clk 0:00:43.5]}
43. Qc2+ {[%clk 0:01:37.8]} 43... g6 {[%clk 0:00:43.1]} 44. h4 {[%clk
0:01:33.5]} 44... Qc4 {[%clk 0:00:42.1]} 45. b3 {[%clk 0:01:24.8]} 45... Qe4
{[%clk 0:00:35.6]} 46. Qxe4 {[%clk 0:01:20.8]} 46... dxe4 {[%clk 0:00:35.5]} 47.
Kf2 {[%clk 0:01:19.5]} 47... f5 {[%clk 0:00:35.2]} 48. gxf5 {[%clk 0:01:07.1]}
48... gxf5 {[%clk 0:00:35.1]} 49. h5 {[%clk 0:01:03.6]} 49... Kg7 {[%clk
0:00:33.8]} 50. Ke3 {[%clk 0:01:02.3]} 50... Kf6 {[%clk 0:00:32.9]} 51. Kd4
{[%clk 0:01:00]} 51... Ke6 {[%clk 0:00:32.5]} 52. c4 {[%clk 0:00:57.4]} 52...
Kd6 {[%clk 0:00:31.4]} 53. Ke3 {[%clk 0:00:53.9]} 53... Kc5 {[%clk 0:00:31.3]}
54. Ke2 {[%clk 0:00:48.8]} 54... a4 {[%clk 0:00:30.2]} 55. bxa4 {[%clk
0:00:46.8]} 55... Kxc4 {[%clk 0:00:29.9]} 56. a5 {[%clk 0:00:39]} 56... Kb5
{[%clk 0:00:29.8]} 57. Ke3 {[%clk 0:00:37.4]} 57... Kxa5 {[%clk 0:00:29.1]} 58.
Kd4 {[%clk 0:00:35.9]} 58... Kb4 {[%clk 0:00:28.7]} 59. Ke3 {[%clk 0:00:34.4]}
59... Kc3 {[%clk 0:00:27.6]} 60. Ke2 {[%clk 0:00:27.7]} 60... Kd4 {[%clk
0:00:26.7]} 61. Kd2 {[%clk 0:00:26.5]} 61... e3+ {[%clk 0:00:26.1]} 62. Ke2
{[%clk 0:00:25.2]} 62... Ke4 {[%clk 0:00:26]} 63. Kf1 {[%clk 0:00:22.8]} 63...
Kxf4 {[%clk 0:00:25.9]} 64. Ke2 {[%clk 0:00:21.9]} 64... Ke4 {[%clk 0:00:25.6]}
65. Ke1 {[%clk 0:00:20.3]} 65... f4 {[%clk 0:00:24.4]} 66. Ke2 {[%clk
0:00:19.7]} 66... f3+ {[%clk 0:00:24.3]} 67. Ke1 {[%clk 0:00:18.2]} 67... Kd3
{[%clk 0:00:24]} 68. Kf1 {[%clk 0:00:17]} 68... f2 {[%clk 0:00:22.8]} 69. Kg2
{[%clk 0:00:15.6]} 69... Ke2 {[%clk 0:00:22.5]} 70. Kg3 {[%clk 0:00:14.2]} 70...
f1=Q {[%clk 0:00:20.6]} 71. Kg4 {[%clk 0:00:13.4]} 71... Qf3+ {[%clk 0:00:17.3]}
72. Kh4 {[%clk 0:00:11.8]} 72... Qf4+ {[%clk 0:00:15.6]} 73. Kh3 {[%clk
0:00:10.5]} 73... Qg5 {[%clk 0:00:15.2]} 74. Kh2 {[%clk 0:00:09]} 74... Kf2
{[%clk 0:00:15.1]} 75. Kh3 {[%clk 0:00:06.8]} 75... Qg3# {[%clk 0:00:14.5]} 0-1

[Event "Live Chess"]
[Site "Chess.com"]
[Date "2024.06.01"]
[Round "-"]
[White "Brooms1989"]
[Black "TC2304"]
[Result "0-1"]
[WhiteElo "1069"]
[BlackElo "2351"]
[TimeControl "300"]
[EndTime "11:07:09 PDT"]
[Termination "TC2304 won by resignation"]

1. e4 {[%clk 0:04:56.9]} 1... Nc6 {[%clk 0:04:57.3]} 2. d4 {[%clk 0:04:53.9]}
2... e5 {[%clk 0:04:56.1]} 3. Nf3 {[%clk 0:04:50.7]} 3... exd4 {[%clk
0:04:54.3]} 4. Nxd4 {[%clk 0:04:49.3]} 4... Bc5 {[%clk 0:04:54]} 5. Nxc6 {[%clk
0:04:47.4]} 5... dxc6 {[%clk 0:04:53]} 6. Qxd8+ {[%clk 0:04:44.1]} 6... Kxd8
{[%clk 0:04:52.9]} 7. Nc3 {[%clk 0:04:41.3]} 7... Be6 {[%clk 0:04:48.7]} 8. Bd3
{[%clk 0:04:37.7]} 8... Ke7 {[%clk 0:04:45.3]} 9. O-O {[%clk 0:04:35.7]} 9...
Nf6 {[%clk 0:04:42.8]} 10. h3 {[%clk 0:04:24.9]} 10... Rad8 {[%clk 0:04:37.8]}
11. e5 {[%clk 0:04:21]} 11... Nd5 {[%clk 0:04:35.9]} 12. Nxd5+ {[%clk
0:04:19.3]} 12... Rxd5 {[%clk 0:04:24.6]} 13. Bf4 {[%clk 0:04:08.6]} 13... h6
{[%clk 0:04:11.5]} 14. Kh1 {[%clk 0:03:57.1]} 14... g5 {[%clk 0:04:08.8]} 15.
Bh2 {[%clk 0:03:53.8]} 15... Rhd8 {[%clk 0:04:00.9]} 16. Rad1 {[%clk 0:03:39]}
16... Bd4 {[%clk 0:03:54]} 17. Bc4 {[%clk 0:03:16.3]} 17... R5d7 {[%clk
0:03:48]} 18. c3 {[%clk 0:03:10.3]} 18... Bxc4 {[%clk 0:03:44.6]} 19. cxd4
{[%clk 0:03:05.5]} 19... Bxf1 {[%clk 0:03:43.4]} 20. Rxf1 {[%clk 0:03:05.4]}
20... Rxd4 {[%clk 0:03:42.8]} 0-1